fUSD/lending_fUSD_20250111
["ID","MTS","AMOUNT","RATE_DAILY","PERIOD"]
[348554901,1736617864023,-500.0,0.0001109,2]
[348554902,1736617864033,-500.0,0.0001109,2]
[348554903,1736617864043,-500.0,0.0001109,2]
[348554904,1736617864055,-500.0,0.0001109,2]
[348554905,1736617864065,-500.0,0.0001109,2]
[348554906,1736617864075,-500.0,0.0001109,2]
[348554907,1736617864086,-500.0,0.0001109,2]
[348554908,1736617864097,-500.0,0.0001109,2]
[348554909,1736617864106,-3506.37,0.0001109,2]
[348554910,1736617864117,-500.0,0.0001109,2]
[348554911,1736617864127,-500.0,0.0001109,2]
[348554912,1736617864137,-500.0,0.0001109,2]
[348554913,1736617864147,-520.05,0.0001109,2]
[348554914,1736617864157,-500.0,0.0001109,2]
[348554915,1736617864167,-500.0,0.0001109,2]
[348554916,1736617864177,-500.0,0.0001109,2]
[348554917,1736617864187,-500.0,0.0001109,2]
[348554918,1736617864197,-500.0,0.0001109,2]
[348554919,1736617864207,-500.0,0.0001109,2]
[348554920,1736617864216,-500.0,0.0001109,2]
[348554921,1736617864226,-500.0,0.0001109,2]
[348554922,1736617864235,-500.0,0.0001109,2]
[348554923,1736617864245,-500.0,0.0001109,2]
[348554924,1736617864254,-500.0,0.0001109,2]
[348554925,1736617864265,-500.0,0.0001109,2]
[348554926,1736617864274,-500.0,0.0001109,2]
[348554927,1736617864284,-500.0,0.0001109,2]
[348554928,1736617864294,-500.0,0.0001109,2]
[348554929,1736617864303,-500.0,0.0001109,2]
[348554930,1736617864313,-500.0,0.0001109,2]
[348554931,1736617864323,-500.0,0.0001109,2]
[348554932,1736617864333,-500.0,0.0001109,2]
[348554933,1736617864342,-500.0,0.0001109,2]
[348554934,1736617864351,-500.0,0.0001109,2]
[348554935,1736617864360,-500.0,0.0001109,2]
[348554936,1736617864370,-1027.0,0.0001109,2]
[348554937,1736617864379,-1025.27,0.0001109,2]
[348554938,1736617864388,-500.0,0.0001109,2]
[348554939,1736617864398,-500.0,0.0001109,2]
[348554940,1736617864407,-500.0,0.0001109,2]
[348554941,1736617864417,-500.0,0.0001109,2]
[348554942,1736617864426,-500.0,0.0001109,2]
[348554943,1736617864436,-500.0,0.0001109,2]
[348554944,1736617864446,-500.0,0.0001109,2]
[348554945,1736617864456,-500.0,0.0001109,2]
[348554946,1736617864466,-1076.09,0.0001109,2]
[348554947,1736617864476,-500.0,0.0001109,2]
[348554948,1736617864486,-500.0,0.0001109,2]
[348554949,1736617864495,-500.0,0.0001109,2]
[348554950,1736617864505,-500.0,0.0001109,2]
[348554951,1736617864514,-527.18,0.0001109,2]
[348554952,1736617864524,-500.0,0.0001109,2]
[348554953,1736617864534,-761.74,0.0001109,2]
[348554954,1736617864543,-500.0,0.0001109,2]
[348554955,1736617864554,-500.0,0.0001109,2]
[348554956,1736617864563,-500.0,0.0001109,2]
[348554957,1736617864573,-500.0,0.0001109,2]
[348554958,1736617864583,-500.0,0.0001109,2]
[348554959,1736617864593,-500.0,0.0001109,2]
[348554960,1736617864603,-4845.51,0.0001109,2]
[348554961,1736617864612,-500.0,0.0001109,2]
[348554962,1736617864621,-500.0,0.0001109,2]
[348554963,1736617864631,-500.0,0.0001109,2]
[348554964,1736617864641,-611.72,0.0001109,2]
[348554965,1736617864651,-500.0,0.0001109,2]
[348554966,1736617864660,-500.0,0.0001109,2]
[348554967,1736617864670,-500.0,0.0001109,2]
[348554968,1736617864680,-500.0,0.0001109,2]
[348554969,1736617864689,-500.0,0.0001109,2]
[348554970,1736617864699,-500.0,0.0001109,2]
[348554971,1736617864708,-500.0,0.0001109,2]
[348554972,1736617864718,-2193.11,0.0001109,2]
[348554973,1736617864728,-500.0,0.0001109,2]
[348554974,1736617864737,-500.0,0.0001109,2]
[348554975,1736617864747,-500.0,0.0001109,2]
[348554976,1736617864756,-500.0,0.0001109,2]
[348554977,1736617864766,-500.0,0.0001109,2]
[348554978,1736617864775,-500.0,0.0001109,2]
[348554979,1736617864785,-500.0,0.0001109,2]
[348554980,1736617864795,-883.7,0.0001109,2]
[348554981,1736617864805,-500.0,0.0001109,2]
[348554982,1736617864815,-500.0,0.0001109,2]
[348554983,1736617864824,-541.62,0.0001109,2]
[348554984,1736617864834,-448.84,0.0001109,2]
[348554985,1736617864844,-500.0,0.0001109,2]
[348554986,1736617864854,-500.0,0.0001109,2]
[348554987,1736617864863,-584.87,0.0001109,2]
[348554988,1736617864873,-787.73,0.0001109,2]
[348554989,1736617864883,-500.0,0.0001109,2]
[348554990,1736617864892,-2678.35,0.0001109,2]
[348554991,1736617864902,-500.0,0.0001109,2]
[348554992,1736617864912,-500.0,0.0001109,2]
[348554993,1736617864922,-500.0,0.0001109,2]
[348554994,1736617865114,-721.21,0.0001109,2]
[348554995,1736617865125,-500.0,0.0001109,2]
[348554996,1736617865135,-500.0,0.0001109,2]
[348554997,1736617865146,-500.0,0.0001109,2]
[348554998,1736617865155,-500.0,0.0001109,2]
[348554999,1736617865164,-1164.85,0.0001109,2]
[348555000,1736617865174,-2484.04,0.0001109,2]
[348555001,1736617865184,-500.0,0.0001109,2]
[348555002,1736617865193,-500.0,0.0001109,2]
[348555003,1736617865206,-500.0,0.0001109,2]
[348555004,1736617865215,-500.0,0.0001109,2]
[348555005,1736617865225,-500.0,0.0001109,2]
[348555006,1736617865234,-500.0,0.0001109,2]
[348555007,1736617865244,-500.0,0.0001109,2]
[348555008,1736617865253,-500.0,0.0001109,2]
[348555009,1736617865263,-500.0,0.0001109,2]
[348555010,1736617865273,-500.0,0.0001109,2]
[348555011,1736617865282,-1265.58,0.0001109,2]
[348555012,1736617865292,-500.0,0.0001109,2]
[348555013,1736617865301,-500.0,0.0001109,2]
[348555014,1736617865310,-500.0,0.0001109,2]
[348555015,1736617865319,-500.0,0.0001109,2]
[348555016,1736617865329,-500.0,0.0001109,2]
[348555017,1736617865338,-500.0,0.0001109,2]
[348555018,1736617865347,-500.0,0.0001109,2]
[348555019,1736617865357,-500.0,0.0001109,2]
[348555020,1736617865366,-500.0,0.0001109,2]
[348555021,1736617865376,-1332.14,0.0001109,2]
[348555022,1736617865385,-1828.59,0.0001109,2]
[348555023,1736617865395,-500.0,0.0001109,2]
[348555024,1736617865404,-500.0,0.0001109,2]
[348555025,1736617865413,-500.0,0.0001109,2]
[348555026,1736617865422,-500.0,0.0001109,2]
[348555027,1736617865431,-794.39,0.00011091,2]
[348555028,1736617865441,-1588.56,0.00011091,2]
[348555029,1736617865451,-1533.66,0.00011091,2]
[348555030,1736617865459,-1955.89,0.00011091,2]
[348555031,1736617865469,-1464.39,0.00011091,2]
[348555032,1736617865478,-500.0,0.00011091,2]
[348555033,1736617865487,-3508.34,0.00011091,2]
[348555034,1736617865497,-768.66,0.00011091,2]
[348555035,1736617865506,-1505.1,0.00011091,2]
[348555036,1736617865516,-1774.67,0.00011091,2]
[348555037,1736617865525,-947.84,0.00011091,2]
[348555038,1736617865534,-2918.92,0.00011091,2]
[348555039,1736617865543,-556.19,0.00011091,2]
[348555040,1736617865553,-748.0,0.00011091,2]
[348555041,1736617865562,-1143.27,0.00011091,2]
[348555042,1736617865571,-1833.81,0.00011091,2]
[348555043,1736617865583,-1344.8,0.00011091,2]
[348555044,1736617865593,-1225.11,0.00011091,2]
[348555045,1736617865602,-1479.59,0.00011091,2]
[348555046,1736617865611,-881.25,0.00011091,2]
[348555047,1736617865620,-879.29,0.00011091,2]
[348555048,1736617865629,-4216.48,0.00011091,2]
[348555049,1736617865638,-834.74,0.00011092,2]
[348555050,1736617865647,-500.0,0.00011093,2]
[348555051,1736617865656,-500.0,0.00011093,2]
[348555052,1736617865665,-500.0,0.00011093,2]
[348555053,1736617865674,-1192.98,0.00011093,2]
[348555054,1736617865683,-1688.61,0.00011093,2]
[348555055,1736617865692,-4399.8,0.00011093,2]
[348555056,1736617865703,-971.27,0.00011094,2]
[348555057,1736617865713,-1299.71,0.00011094,2]
[348555058,1736617865722,-768.47,0.00011094,2]
[348555059,1736617865732,-2058.17,0.00011094,2]
[348555060,1736617865742,-1598.16,0.00011094,2]
[348555061,1736617865752,-666.0,0.00011098,2]
[348555062,1736617865762,-300.0,0.00011098,2]
[348555063,1736617865771,-300.0,0.00011098,2]
[348555064,1736617865781,-300.0,0.00011098,2]
[348555065,1736617865791,-988.42,0.00011099,2]
[348555066,1736617865800,-151.0,0.00011099,2]
[348555067,1736617865809,-734.03389695,0.00011107,2]
[348555068,1736617865818,-587.0,0.00011121,2]
[348555069,1736617865827,-429.82131162,0.00011124,2]
[348555070,1736617865837,-150.0,0.00011141,2]
[348555071,1736617865846,-150.0,0.00011163,2]
[348555072,1736617865855,-177.894438,0.00011163,2]
[348555073,1736617865864,-734.03389695,0.00011176,2]
[348555074,1736617865873,-734.03389695,0.00011245,2]
[348555075,1736617865882,-500.0,0.00011274,2]
[348555076,1736617865891,-2000.0,0.00011274,2]
[348555077,1736617865900,-500.0,0.00011274,2]
[348555078,1736617865910,-200.0,0.00011274,2]
[348555079,1736617865921,-3100.0,0.000113,4]
[348555080,1736617865930,-177.894438,0.00011303,2]
[348555081,1736617865939,-734.03389695,0.00011314,2]
[348555082,1736617865949,-189.5494424,0.00011321,2]
[348555083,1736617865958,-70000.00000099,0.0001133,3]
[348555084,1736617865967,-3235.791796,0.00011357,2]
[348555085,1736617865976,-12074.9266813,0.00011357,2]
[348555086,1736617865986,-500.0,0.00011363,2]
[348555087,1736617865995,-500.0,0.00011363,2]
[348555088,1736617866004,-389.82041904,0.00011363,2]
[348555089,1736617866013,-500.0,0.00011363,2]
[348555090,1736617866023,-500.0,0.00011363,2]
[348555091,1736617866032,-613.82,0.00011363,2]
[348555092,1736617866041,-500.0,0.00011363,2]
[348555093,1736617866050,-500.0,0.00011363,2]
[348555094,1736617866060,-500.0,0.00011363,2]
[348555095,1736617866070,-500.0,0.00011363,2]
[348555096,1736617866079,-500.0,0.00011363,2]
[348555097,1736617866088,-500.0,0.00011363,2]
[348555098,1736617866101,-500.0,0.00011363,2]
[348555099,1736617866110,-500.0,0.00011363,2]
[348555100,1736617866120,-500.0,0.00011363,2]
[348555101,1736617866129,-500.0,0.00011363,2]
[348555102,1736617866139,-500.0,0.00011363,2]
[348555103,1736617866149,-500.0,0.00011363,2]
[348555104,1736617866158,-500.0,0.00011363,2]
[348555105,1736617866168,-500.0,0.00011363,2]
[348555106,1736617866178,-500.0,0.00011363,2]
[348555107,1736617866189,-500.0,0.00011363,2]
[348555108,1736617866200,-537.05,0.00011363,2]
[348555109,1736617866210,-500.0,0.00011363,2]
[348555110,1736617866220,-500.0,0.00011363,2]
[348555111,1736617866229,-500.0,0.00011363,2]
[348555112,1736617866239,-221.45039634,0.00011363,2]
[348555113,1736617866248,-500.0,0.00011363,2]
[348555114,1736617866258,-500.0,0.00011363,2]
[348555115,1736617866267,-500.0,0.00011363,2]
[348555116,1736617866276,-500.0,0.00011363,2]
[348555117,1736617866285,-500.0,0.00011363,2]
[348555118,1736617866294,-500.0,0.00011363,2]
[348555119,1736617866304,-500.0,0.00011363,2]
[348555120,1736617866313,-500.0,0.00011363,2]
[348555121,1736617866323,-500.0,0.00011363,2]
[348555122,1736617866333,-500.0,0.00011363,2]
[348555123,1736617866343,-500.0,0.00011363,2]
[348555124,1736617866352,-500.0,0.00011363,2]
[348555125,1736617866361,-500.0,0.00011363,2]
[348555126,1736617866371,-2515.04,0.00011363,2]
[348555127,1736617866380,-500.0,0.00011363,2]
[348555128,1736617866390,-1662.92,0.00011363,2]
[348555129,1736617866400,-500.0,0.00011363,2]
[348555130,1736617866410,-500.0,0.00011363,2]
[348555131,1736617866420,-500.0,0.00011363,2]
[348555132,1736617866429,-2486.48,0.00011363,2]
[348555133,1736617866439,-6263.35,0.00011363,2]
[348555134,1736617866448,-500.0,0.00011363,2]
[348555135,1736617866457,-500.0,0.00011363,2]
[348555136,1736617866467,-500.0,0.00011363,2]
[348555137,1736617866476,-500.0,0.00011363,2]
[348555138,1736617866486,-500.0,0.00011363,2]
[348555139,1736617866496,-1729.18,0.00011363,2]
[348555140,1736617866505,-707.85,0.00011363,2]
[348555141,1736617866514,-500.0,0.00011363,2]
[348555142,1736617866524,-500.0,0.00011363,2]
[348555143,1736617866533,-1191.93,0.00011363,2]
[348555144,1736617866543,-500.3,0.00011363,2]
[348555145,1736617866553,-500.0,0.00011363,2]
[348555146,1736617866562,-493.98473856,0.00011363,2]
[348555147,1736617866572,-500.0,0.00011363,2]
[348555148,1736617866581,-500.0,0.00011363,2]
[348555149,1736617866590,-3145.91,0.00011363,2]
[348555150,1736617866599,-3203.88,0.00011363,2]
[348555151,1736617866608,-500.0,0.00011363,2]
[348555152,1736617866618,-500.0,0.00011363,2]
[348555153,1736617866627,-391.42,0.00011363,2]
[348555154,1736617866637,-500.0,0.00011363,2]
[348555155,1736617866646,-500.0,0.00011363,2]
[348555156,1736617866655,-500.0,0.00011363,2]
[348555157,1736617866664,-2948.79,0.00011363,2]
[348555158,1736617866673,-500.0,0.00011363,2]
[348555159,1736617866682,-500.0,0.00011363,2]
[348555160,1736617866692,-500.0,0.00011363,2]
[348555161,1736617866703,-4365.76,0.00011363,2]
[348555162,1736617866712,-500.0,0.00011363,2]
[348555163,1736617866721,-500.0,0.00011363,2]
[348555164,1736617866730,-500.0,0.00011363,2]
[348555165,1736617866740,-2463.42,0.00011363,2]
[348555166,1736617866749,-1302.49,0.00011363,2]
[348555167,1736617866758,-1664.49,0.00011363,2]
[348555168,1736617866767,-356.08,0.00011363,2]
[348555169,1736617866777,-500.0,0.00011363,2]
[348555170,1736617866786,-500.0,0.00011363,2]
[348555171,1736617866796,-415.97805197,0.00011363,2]
[348555172,1736617866805,-3892.88,0.00011363,2]
[348555173,1736617866815,-558.7,0.00011363,2]
[348555174,1736617866824,-500.0,0.00011363,2]
[348555175,1736617866833,-500.0,0.00011363,2]
[348555176,1736617866843,-500.0,0.00011363,2]
[348555177,1736617866852,-500.0,0.00011363,2]
[348555178,1736617866862,-500.0,0.00011363,2]
[348555179,1736617866871,-500.0,0.00011363,2]
[348555180,1736617866881,-2250.27,0.00011363,2]
[348555181,1736617866891,-1806.59,0.00011363,2]
[348555182,1736617866900,-500.0,0.00011363,2]
[348555183,1736617866909,-500.0,0.00011363,2]
[348555184,1736617866919,-563.53,0.00011363,2]
[348555185,1736617866928,-500.0,0.00011363,2]
[348555186,1736617866938,-773.32,0.00011363,2]
[348555187,1736617866947,-534.65,0.00011363,2]
[348555188,1736617866957,-500.0,0.00011363,2]
[348555189,1736617866966,-500.0,0.00011363,2]
[348555190,1736617866975,-500.0,0.00011363,2]
[348555191,1736617866985,-2195.61,0.00011363,2]
[348555192,1736617866994,-555.59,0.00011363,2]
[348555193,1736617867003,-860.77,0.00011363,2]
[348555194,1736617867013,-666.0,0.00011363,2]
[348555195,1736617867022,-300.0,0.00011363,2]
[348555196,1736617867032,-300.0,0.00011363,2]
[348555197,1736617867041,-300.0,0.00011363,2]
[348555198,1736617867050,-500.0,0.00011364,2]
[348555199,1736617867061,-500.0,0.00011364,2]
[348555200,1736617867070,-500.0,0.00011364,2]
[348555201,1736617867079,-500.0,0.00011364,2]
[348555202,1736617867089,-500.0,0.00011364,2]
[348555203,1736617867100,-500.0,0.00011364,2]
[348555204,1736617867110,-500.0,0.00011364,2]
[348555205,1736617867120,-500.0,0.00011364,2]
[348555206,1736617867129,-1021.71,0.00011364,2]
[348555207,1736617867139,-500.0,0.00011364,2]
[348555208,1736617867148,-500.0,0.00011364,2]
[348555209,1736617867157,-500.0,0.00011364,2]
[348555210,1736617867166,-500.0,0.00011364,2]
[348555211,1736617867175,-744.91,0.00011364,2]
[348555212,1736617867184,-500.0,0.00011364,2]
[348555213,1736617867193,-500.0,0.00011364,2]
[348555214,1736617867205,-500.0,0.00011364,2]
[348555215,1736617867215,-500.0,0.00011364,2]
[348555216,1736617867224,-500.0,0.00011364,2]
[348555217,1736617867233,-500.0,0.00011364,2]
[348555218,1736617867242,-500.0,0.00011364,2]
[348555219,1736617867252,-500.0,0.00011364,2]
[348555220,1736617867261,-2246.3,0.00011364,2]
[348555221,1736617867270,-500.0,0.00011364,2]
[348555222,1736617867279,-500.0,0.00011364,2]
[348555223,1736617867288,-500.0,0.00011364,2]
[348555224,1736617867298,-500.0,0.00011364,2]
[348555225,1736617867307,-1001.91,0.00011364,2]
[348555226,1736617867316,-500.0,0.00011364,2]
[348555227,1736617867325,-587.01,0.00011364,2]
[348555228,1736617867335,-500.0,0.00011364,2]
[348555229,1736617867344,-500.0,0.00011364,2]
[348555230,1736617867352,-500.0,0.00011364,2]
[348555231,1736617867361,-500.0,0.00011364,2]
[348555232,1736617867371,-666.0,0.00011364,2]
[348555233,1736617867379,-500.0,0.00011364,2]
[348555234,1736617867388,-500.0,0.00011364,2]
[348555235,1736617867397,-500.0,0.00011364,2]
[348555236,1736617867406,-877.54,0.00011364,2]
[348555237,1736617867415,-500.0,0.00011364,2]
[348555238,1736617867424,-500.0,0.00011364,2]
[348555239,1736617867433,-500.0,0.00011364,2]
[348555240,1736617867442,-500.0,0.00011364,2]
[348555241,1736617867454,-500.0,0.00011364,2]
[348555242,1736617867463,-500.0,0.00011364,2]
[348555243,1736617867473,-500.0,0.00011364,2]
[348555244,1736617867483,-500.0,0.00011364,2]
[348555245,1736617867492,-380.10765234,0.00011364,2]
[348555246,1736617867501,-500.0,0.00011364,2]
[348555247,1736617867510,-1931.71,0.00011364,2]
[348555248,1736617867519,-500.0,0.00011364,2]
[348555249,1736617867528,-500.0,0.00011364,2]
[348555250,1736617867538,-500.0,0.00011364,2]
[348555251,1736617867547,-750.82,0.00011364,2]
[348555252,1736617867556,-500.0,0.00011364,2]
[348555253,1736617867566,-500.0,0.00011364,2]
[348555254,1736617867575,-500.0,0.00011364,2]
[348555255,1736617867583,-500.0,0.00011364,2]
[348555256,1736617867593,-500.0,0.00011364,2]
[348555257,1736617867602,-500.0,0.00011364,2]
[348555258,1736617867611,-500.0,0.00011364,2]
[348555259,1736617867620,-2794.28,0.00011364,2]
[348555260,1736617867629,-594.96,0.00011364,2]
[348555261,1736617867638,-500.0,0.00011364,2]
[348555262,1736617867647,-500.0,0.00011364,2]
[348555263,1736617867656,-500.0,0.00011364,2]
[348555264,1736617867665,-500.0,0.00011364,2]
[348555265,1736617867674,-500.0,0.00011364,2]
[348555266,1736617867684,-500.0,0.00011364,2]
[348555267,1736617867693,-500.0,0.00011364,2]
[348555268,1736617867706,-500.0,0.00011364,2]
[348555269,1736617867715,-500.0,0.00011364,2]
[348555270,1736617867724,-500.0,0.00011364,2]
[348555271,1736617867734,-500.0,0.00011364,2]
[348555272,1736617867743,-500.0,0.00011364,2]
[348555273,1736617867752,-500.0,0.00011364,2]
[348555274,1736617867761,-402.47,0.00011364,2]
[348555275,1736617867770,-1556.78,0.00011364,2]
[348555276,1736617867779,-500.0,0.00011364,2]
[348555277,1736617867788,-500.0,0.00011364,2]
[348555278,1736617867798,-500.0,0.00011364,2]
[348555279,1736617867807,-500.0,0.00011364,2]
[348555280,1736617867816,-319.07908884,0.00011364,2]
[348555281,1736617867825,-500.0,0.00011364,2]
[348555282,1736617867834,-500.0,0.00011364,2]
[348555283,1736617867843,-500.0,0.00011364,2]
[348555284,1736617867852,-500.0,0.00011364,2]
[348555285,1736617867862,-599.44,0.00011364,2]
[348555286,1736617867871,-1105.62,0.00011364,2]
[348555287,1736617867880,-500.0,0.00011364,2]
[348555288,1736617867890,-500.0,0.00011364,2]
[348555289,1736617867899,-500.0,0.00011364,2]
[348555290,1736617867909,-1707.208363,0.00011364,2]
[348555291,1736617867918,-500.0,0.00011364,2]
[348555292,1736617867927,-515.83,0.00011364,2]
[348555293,1736617867936,-500.0,0.00011364,2]
[348555294,1736617867947,-500.0,0.00011364,2]
[348555295,1736617867956,-500.0,0.00011364,2]
[348555296,1736617867966,-500.0,0.00011364,2]
[348555297,1736617867976,-500.0,0.00011364,2]
[348555298,1736617867985,-500.0,0.00011364,2]
[348555299,1736617867994,-1824.135556,0.00011364,2]
[348555300,1736617868004,-500.0,0.00011364,2]
[348555301,1736617868013,-500.0,0.00011364,2]
[348555302,1736617868022,-577.02,0.00011364,2]
[348555303,1736617868032,-500.0,0.00011364,2]
[348555304,1736617868041,-865.18,0.00011364,2]
[348555305,1736617868053,-500.0,0.00011364,2]
[348555306,1736617868063,-500.0,0.00011364,2]
[348555307,1736617868073,-500.0,0.00011364,2]
[348555308,1736617868083,-500.0,0.00011364,2]
[348555309,1736617868092,-500.0,0.00011364,2]
[348555310,1736617868101,-500.0,0.00011364,2]
[348555311,1736617868110,-500.0,0.00011364,2]
[348555312,1736617868124,-963.66,0.00011364,2]
[348555313,1736617868134,-661.65,0.00011364,2]
[348555314,1736617868143,-500.0,0.00011364,2]
[348555315,1736617868152,-794.24,0.00011364,2]
[348555316,1736617868162,-554.94,0.00011364,2]
[348555317,1736617868171,-476.20532984,0.00011364,2]
[348555318,1736617868180,-364.84848922,0.00011364,2]
[348555319,1736617868189,-500.0,0.00011364,2]
[348555320,1736617868201,-500.0,0.00011364,2]
[348555321,1736617868211,-819.98,0.00011364,2]
[348555322,1736617868220,-500.0,0.00011364,2]
[348555323,1736617868230,-500.0,0.00011364,2]
[348555324,1736617868239,-500.0,0.00011364,2]
[348555325,1736617868249,-500.0,0.00011364,2]
[348555326,1736617868258,-500.0,0.00011364,2]
[348555327,1736617868267,-500.0,0.00011364,2]
[348555328,1736617868277,-500.0,0.00011364,2]
[348555329,1736617868287,-500.0,0.00011364,2]
[348555330,1736617868297,-500.0,0.00011364,2]
[348555331,1736617868306,-500.0,0.00011364,2]
[348555332,1736617868315,-500.0,0.00011364,2]
[348555333,1736617868324,-1013.28,0.00011364,2]
[348555334,1736617868333,-500.0,0.00011364,2]
[348555335,1736617868342,-500.0,0.00011364,2]
[348555336,1736617868352,-500.0,0.00011364,2]
[348555337,1736617868361,-500.0,0.00011364,2]
[348555338,1736617868371,-500.0,0.00011364,2]
[348555339,1736617868380,-500.0,0.00011364,2]
[348555340,1736617868389,-500.0,0.00011364,2]
[348555341,1736617868398,-500.0,0.00011364,2]
[348555342,1736617868408,-500.0,0.00011364,2]
[348555343,1736617868417,-500.0,0.00011364,2]
[348555344,1736617868426,-500.0,0.00011364,2]
[348555345,1736617868435,-168.5,0.00011364,2]
[348555346,1736617868444,-3506.37,0.00011364,2]
[348555347,1736617868455,-500.0,0.00011364,2]
[348555348,1736617868464,-500.0,0.00011364,2]
[348555349,1736617868474,-520.05,0.00011364,2]
[348555350,1736617868483,-500.0,0.00011364,2]
[348555351,1736617868492,-500.0,0.00011364,2]
[348555352,1736617868501,-500.0,0.00011364,2]
[348555353,1736617868511,-500.0,0.00011364,2]
[348555354,1736617868520,-500.0,0.00011364,2]
[348555355,1736617868529,-500.0,0.00011364,2]
[348555356,1736617868538,-500.0,0.00011364,2]
[348555357,1736617868548,-500.0,0.00011364,2]
[348555358,1736617868558,-500.0,0.00011364,2]
[348555359,1736617868568,-500.0,0.00011364,2]
[348555360,1736617868578,-500.0,0.00011364,2]
[348555361,1736617868588,-500.0,0.00011364,2]
[348555362,1736617868743,-500.0,0.00011364,2]
[348555363,1736617868775,-500.0,0.00011364,2]
[348555364,1736617868785,-500.0,0.00011364,2]
[348555365,1736617868795,-500.0,0.00011364,2]
[348555366,1736617868805,-500.0,0.00011364,2]
[348555367,1736617868814,-500.0,0.00011364,2]
[348555368,1736617868823,-500.0,0.00011364,2]
[348555369,1736617868833,-500.0,0.00011364,2]
[348555370,1736617868843,-500.0,0.00011364,2]
[348555371,1736617868852,-1027.0,0.00011364,2]
[348555372,1736617868862,-500.0,0.00011364,2]
[348555373,1736617868872,-1025.27,0.00011364,2]
[348555374,1736617868881,-287.60461101,0.00011364,2]
[348555375,1736617868891,-500.0,0.00011364,2]
[348555376,1736617868899,-500.0,0.00011364,2]
[348555377,1736617868908,-500.0,0.00011364,2]
[348555378,1736617868918,-500.0,0.00011364,2]
[348555379,1736617868927,-500.0,0.00011364,2]
[348555380,1736617868936,-500.0,0.00011364,2]
[348555381,1736617868945,-1076.09,0.00011364,2]
[348555382,1736617868956,-500.0,0.00011364,2]
[348555383,1736617868965,-500.0,0.00011364,2]
[348555384,1736617868975,-500.0,0.00011364,2]
[348555385,1736617868984,-500.0,0.00011364,2]
[348555386,1736617868994,-527.18,0.00011364,2]
[348555387,1736617869004,-500.0,0.00011364,2]
[348555388,1736617869014,-761.74,0.00011364,2]
[348555389,1736617869023,-500.0,0.00011364,2]
[348555390,1736617869033,-500.0,0.00011364,2]
[348555391,1736617869044,-500.0,0.00011364,2]
[348555392,1736617869055,-500.0,0.00011364,2]
[348555393,1736617869065,-500.0,0.00011364,2]
[348555394,1736617869075,-500.0,0.00011364,2]
[348555395,1736617869085,-500.0,0.00011364,2]
[348555396,1736617869094,-4845.51,0.00011364,2]
[348555397,1736617869103,-500.0,0.00011364,2]
[348555398,1736617869113,-500.0,0.00011364,2]
[348555399,1736617869125,-611.72,0.00011364,2]
[348555400,1736617869134,-500.0,0.00011364,2]